bitfinex-derivatives/quotes_BNBF0:USTF0_20250116
["timestamp","ask_amount","ask_price","bid_price","bid_amount"]
[1737046494363,1.04655328,712.43,711.8,0.48792857]
[1737046494665,1.04655328,712.43,711.81,0.48792857]
[1737046494856,1.04655328,712.43,711.82,0.48792857]
[1737046495061,1.04655328,712.43,711.83,0.48792857]
[1737046495362,1.04655328,712.45,711.84,0.48792857]
[1737046495563,1.04655328,712.45,711.85,0.48792857]
[1737046495758,1.04655328,712.45,711.86,0.48792857]
[1737046495963,1.04655328,712.45,711.87,0.48792857]
[1737046496262,1.04655328,712.45,711.88,0.48792857]
[1737046496463,1.04655328,712.44,711.89,0.48792857]
[1737046496665,1.04655328,712.44,711.9,0.48792857]
[1737046496863,1.04655328,712.44,711.91,0.48792857]
[1737046497064,1.04655328,712.44,711.92,0.48792857]
[1737046497264,1.04655328,712.44,711.93,0.48792857]
[1737046497461,1.04655328,712.44,711.94,0.48792857]
[1737046497662,1.04655328,712.44,711.95,0.48792857]
[1737046497861,1.04655328,712.44,711.96,0.48792857]
[1737046498058,1.04655328,712.44,711.97,0.48792857]
[1737046498264,1.04655328,712.42,711.98,0.48792857]
[1737046498465,1.04655328,712.42,711.99,0.48792857]
[1737046498665,1.04655328,712.42,712.0,0.48792857]
[1737046498967,1.04655328,712.42,712.01,0.48792857]
[1737046499266,1.04655328,712.42,712.02,0.48792857]
[1737046499467,1.04655328,712.41,712.03,0.48792857]
[1737046499660,1.04655328,712.41,712.04,0.48792857]
[1737046499866,1.04655328,712.41,712.05,0.48792857]
[1737046500058,1.04655328,712.41,712.06,0.48792857]
[1737046500263,1.04655328,712.4,712.07,0.48792857]
[1737046500464,1.04655328,712.4,712.08,0.48792857]
[1737046500665,1.04655328,712.4,711.61,1.04623969]
[1737046500866,1.04655328,712.4,711.62,0.74775466]
[1737046501166,1.04655328,712.4,711.63,0.48964006]
[1737046501367,1.04655328,712.41,711.64,0.48964006]
[1737046501565,1.04655328,712.41,711.65,0.48964006]
[1737046501761,1.04655328,712.41,711.66,0.48964006]
[1737046501966,1.04655328,712.41,711.67,0.48964006]
[1737046502165,1.04655328,712.41,711.68,0.48964006]
[1737046502362,1.04655328,712.41,711.69,0.48964006]
[1737046502567,1.04655328,712.39,711.7,0.49012436]
[1737046502865,1.04655328,712.39,711.71,0.49012436]
[1737046503067,1.04655328,712.39,711.55,1.04623969]
[1737046503068,1.04655328,712.39,711.72,0.49012436]
[1737046503367,1.04655328,712.39,711.73,0.49012436]
[1737046503569,1.04655328,712.41,711.74,0.49012436]
[1737046503762,1.04655328,712.41,711.75,0.49012436]
[1737046503962,1.04655328,712.41,711.76,0.49012436]
[1737046504162,1.04655328,712.41,711.77,0.49012436]
[1737046504368,1.04655328,712.43,711.78,0.49012436]
[1737046504666,1.04655328,712.43,711.79,0.49012436]
[1737046504969,1.04655328,712.43,711.8,0.49012436]
[1737046505168,1.04655328,712.43,711.81,0.49012436]
[1737046505370,1.04655328,712.43,711.82,0.49012436]
[1737046505570,1.04655328,712.43,711.83,0.49012436]
[1737046505771,1.04655328,712.43,711.4,0.28113578]
[1737046505772,1.04655328,712.41,711.84,0.49012436]
[1737046505971,1.04655328,712.41,711.85,0.49012436]
[1737046506170,1.04655328,712.41,711.86,0.49012436]
[1737046506371,1.04655328,712.41,711.87,0.49012436]
[1737046506570,1.04655328,712.41,711.88,0.49012436]
[1737046506866,1.04655328,712.41,711.4,0.28113578]
[1737046506867,1.04655328,712.37,711.89,0.49012436]
[1737046507071,1.04655328,712.37,711.9,0.49012436]
[1737046507270,1.04655328,712.37,711.91,0.49012436]
[1737046507471,1.04655328,712.37,711.92,0.49012436]
[1737046507671,1.04655328,712.37,711.93,0.49012436]
[1737046507871,1.04655328,712.37,711.94,0.49012436]
[1737046508173,1.04655328,712.35,711.95,0.49012436]
[1737046508371,1.04655328,712.35,711.4,0.28113578]
[1737046508372,1.04655328,712.35,711.96,0.49012436]
[1737046508673,1.04655328,712.35,711.97,0.49012436]
[1737046508866,1.04655328,712.35,711.98,0.49012436]
[1737046509066,1.04655328,712.35,711.99,0.49012436]
[1737046509265,1.04655328,712.58,712.0,0.49012436]
[1737046509266,1.04655328,712.36,712.0,0.49012436]
[1737046509474,1.04655328,712.36,712.01,0.49012436]
[1737046509673,1.04655328,712.36,711.4,0.28113578]
[1737046509873,1.04655328,712.36,711.41,0.74853962]
[1737046510076,1.04655328,712.36,711.42,0.49036431]
[1737046510275,1.04655328,712.36,711.43,0.49036431]
[1737046510476,1.04655328,712.36,711.44,0.49036431]
[1737046510676,1.04655328,712.36,711.45,0.49036431]
[1737046510874,1.04655328,712.36,711.46,0.49036431]
[1737046511075,1.04655328,712.36,711.47,0.49036431]
[1737046511275,1.04655328,712.38,711.48,0.49036431]
[1737046511576,1.04655328,712.38,711.49,0.49036431]
[1737046511875,1.04655328,712.38,711.5,0.49036431]
[1737046512078,1.04655328,712.38,711.51,0.49036431]
[1737046512376,1.04655328,712.38,711.52,0.49036431]
[1737046512575,1.04655328,712.38,711.4,0.28113578]
[1737046512576,1.04655328,712.38,711.53,0.49036431]
[1737046512776,1.04655328,712.38,711.4,0.28113578]
[1737046512777,1.04655328,712.38,711.54,0.49036431]
[1737046512976,1.04655328,712.38,711.55,0.49036431]
[1737046513277,1.04655328,712.38,711.56,0.49036431]
[1737046513477,1.04655328,712.38,711.57,0.49036431]
[1737046513676,0.72209771,712.83,711.58,0.49036431]
[1737046513677,1.04655328,712.35,711.58,0.49036431]
[1737046513876,1.04655328,712.35,711.59,0.49036431]
[1737046514077,1.04655328,712.35,711.6,0.49036431]
[1737046514277,1.04655328,712.35,711.61,0.49036431]
[1737046514473,1.04655328,712.35,711.62,0.49036431]
[1737046514673,1.04655328,712.57,711.63,0.49036431]
[1737046514873,1.04655328,712.57,711.64,0.49036431]
[1737046515072,1.04655328,712.57,711.65,0.49036431]
[1737046515270,1.04655328,712.57,711.66,0.49036431]
[1737046515479,1.04655328,712.6,711.67,0.49036431]
[1737046515676,1.04655328,712.6,711.4,0.28113578]
[1737046515677,1.04655328,712.6,711.68,0.49036431]
[1737046515872,1.04655328,712.6,711.69,0.49036431]
[1737046516077,1.04655328,712.6,711.7,0.49036431]
[1737046516377,1.04655328,712.6,711.71,0.49036431]
[1737046516579,1.04655328,712.6,711.72,0.49036431]
[1737046516777,1.04655328,712.62,711.73,0.49036431]
[1737046516972,1.04655328,712.62,711.74,0.49036431]
[1737046517272,1.04655328,712.62,711.75,0.49036431]
[1737046517476,1.04655328,712.62,711.76,0.49036431]
[1737046517677,1.04655328,712.62,711.77,0.48953151]
[1737046517873,1.04655328,712.62,711.78,0.48953151]
[1737046518074,1.04655328,712.62,711.79,0.48953151]
[1737046518278,1.04655328,712.62,711.8,0.48953151]
[1737046518478,1.04655328,712.62,711.81,0.48953151]
[1737046518673,1.04655328,712.62,711.82,0.48953151]
[1737046518878,1.04655328,712.62,711.83,0.48953151]
[1737046519079,1.04655328,712.62,711.84,0.48953151]
[1737046519280,1.04655328,712.62,711.85,0.48953151]
[1737046519480,1.04655328,712.62,711.86,0.48953151]
[1737046519675,1.04655328,712.62,711.87,0.48953151]
[1737046519981,1.04655328,712.62,711.88,0.48953151]
[1737046520180,1.04655328,712.62,711.89,0.48953151]
[1737046520479,1.04655328,712.62,711.9,0.48953151]
[1737046520681,1.04655328,712.62,711.91,0.48953151]
[1737046520881,1.04655328,712.62,711.92,0.48953151]
[1737046521082,1.04655328,712.62,711.44,1.04623969]
[1737046521083,1.04655328,712.62,711.93,0.48953151]
[1737046521274,1.04655328,712.62,711.94,0.48953151]
[1737046521478,1.04655328,712.62,711.95,0.48953151]
[1737046521676,1.04655328,712.62,711.96,0.48953151]
[1737046521881,1.04655328,712.62,711.97,0.48953151]
[1737046522082,1.04655328,712.62,711.98,0.48953151]
[1737046522381,1.04655328,712.62,711.99,0.48953151]
[1737046522583,1.04655328,712.62,712.0,0.48953151]
[1737046522776,1.04655328,712.62,712.01,0.48953151]
[1737046522980,1.04655328,712.62,712.02,0.48953151]
[1737046523178,1.04655328,712.62,712.03,0.48953151]
[1737046523376,1.04655328,712.62,712.04,0.48953151]
[1737046523577,1.04655328,712.62,712.05,0.48953151]
[1737046523882,1.04655328,712.62,712.06,0.48953151]
[1737046524082,1.04655328,712.62,712.07,0.48953151]
[1737046524283,1.04655328,712.62,711.44,1.04623969]
[1737046524284,1.04655328,712.62,712.08,0.48953151]
[1737046524483,1.04655328,712.62,711.44,1.04623969]
[1737046524683,1.04655328,712.62,711.45,0.48960196]
[1737046524884,1.04655328,712.62,711.46,0.48960196]
[1737046525084,1.04655328,712.59,711.47,0.48960196]
[1737046525283,1.04655328,712.59,711.48,0.48960196]
[1737046525483,1.04655328,712.59,711.49,0.74775556]
[1737046525785,1.04655328,712.46,711.5,0.74775556]
[1737046525985,1.04655328,712.46,711.51,0.74775556]
[1737046526184,1.04655328,712.46,711.52,0.74775556]
[1737046526478,0.72316077,712.83,711.4,0.28113578]
[1737046526479,1.04655328,712.5,711.53,0.74775556]
[1737046526685,1.04655328,712.5,711.54,0.74773345]
[1737046526985,1.04655328,712.5,711.55,0.74773345]
[1737046527284,0.72316077,712.83,711.56,0.74737925]
[1737046527285,1.04655328,712.53,711.56,0.74737925]
[1737046527485,1.04655328,712.53,711.57,0.74737027]
[1737046527687,1.04655328,712.53,711.58,0.74737027]
[1737046527985,1.04655328,712.53,711.59,0.74737027]
[1737046528187,1.04655328,712.53,711.6,0.48924776]
[1737046528381,1.04655328,712.54,711.61,0.48924776]
[1737046528586,1.04655328,712.54,711.62,0.48924776]
[1737046528785,1.04655328,712.54,711.63,0.48924776]
[1737046528980,1.04655328,712.54,711.64,0.48924776]
[1737046529186,1.04655328,712.54,711.65,0.48924776]
[1737046529388,1.04655328,712.55,711.66,0.48924776]
[1737046529586,1.04655328,712.55,711.67,0.48924776]
[1737046529787,1.04655328,712.55,711.68,0.48924776]
[1737046529983,1.04655328,712.55,711.69,0.48924776]
[1737046530185,1.04655328,712.55,711.7,0.48924776]
[1737046530381,1.04655328,712.55,711.71,0.48924776]
[1737046530583,1.04655328,712.55,711.72,0.48924776]
[1737046530787,1.04655328,712.55,711.73,0.48924776]
[1737046530989,1.04655328,712.55,711.74,0.48923738]
[1737046531185,1.04655328,712.55,711.75,0.48923738]
[1737046531391,1.04655328,712.59,711.76,0.48923738]
[1737046531585,1.04655328,712.59,711.77,0.48923738]
[1737046531889,1.04655328,712.59,711.78,0.48923738]
[1737046532183,1.04655328,712.59,711.79,0.48923738]
[1737046532386,1.04655328,712.59,711.8,0.48923738]
[1737046532588,0.28056786,712.84,711.81,0.48923738]
[1737046532789,0.28056786,712.84,711.82,0.48923738]
[1737046532991,0.28056786,712.84,711.83,0.48923738]
[1737046533295,0.28056786,712.84,711.84,0.48923738]
[1737046533493,0.28056786,712.84,711.85,0.48923738]
[1737046533691,0.28056786,712.84,711.86,0.48923738]
[1737046533895,0.28056786,712.84,711.87,0.48923738]
[1737046534094,0.28056786,712.84,711.4,0.28113578]
[1737046534095,0.28056786,712.84,711.88,0.48923738]
[1737046534288,0.28056786,712.84,711.89,0.48923738]
[1737046534488,0.28056786,712.84,711.9,0.48923738]
[1737046534693,0.28056786,712.84,711.91,0.48923738]
[1737046534893,0.28056786,712.84,711.92,0.48923738]
[1737046535190,0.28056786,712.84,711.93,0.48923738]
[1737046535391,0.28056786,712.84,711.4,0.28113578]
[1737046535392,1.04655328,712.62,711.94,0.48923738]
[1737046535597,1.04655328,712.62,711.95,0.48923738]
[1737046535792,1.04655328,712.62,711.4,0.28113578]
[1737046535995,1.04655328,712.62,711.41,0.74800105]
[1737046536196,1.04655328,712.62,711.42,0.4898178]
[1737046536500,1.04655328,712.62,711.43,0.4898171]
[1737046536702,1.04655328,712.62,711.4,0.28113578]
[1737046536703,1.04655328,712.62,711.44,0.4898171]
[1737046536899,1.04655328,712.62,710.9,1.04623969]
[1737046536900,1.04655328,712.39,711.45,0.4898171]
[1737046537094,1.04655328,712.39,711.46,0.4898171]
[1737046537295,1.04655328,712.39,711.47,0.4898171]
[1737046537493,1.04655328,712.39,711.29,1.04623969]
[1737046537494,1.04655328,712.39,711.48,0.4898171]
[1737046537696,1.04655328,712.39,711.29,1.04623969]
[1737046537697,1.04655328,712.39,711.49,0.4898171]
[1737046537894,1.04655328,712.39,711.29,1.04623969]
[1737046537895,1.04655328,712.39,711.5,0.4898171]
[1737046538098,1.04655328,712.42,711.51,0.4898171]
[1737046538297,1.04655328,712.42,710.96,1.04623969]
[1737046538298,1.04655328,712.42,711.52,0.4898171]
[1737046538499,1.04655328,712.42,711.53,0.4898171]
[1737046538802,1.04655328,712.42,711.54,0.4898171]
[1737046539002,1.04655328,712.42,710.96,1.04623969]
[1737046539003,1.04655328,712.42,711.55,0.4898171]
[1737046539202,1.04655328,712.46,711.56,0.4898171]
[1737046539394,1.04655328,712.46,711.57,0.4898171]
[1737046539594,1.04655328,712.46,711.58,0.4898171]
[1737046539795,1.04655328,712.46,711.59,0.4898171]
[1737046539999,1.04655328,712.46,711.6,0.4898171]
[1737046540295,1.04655328,712.46,711.61,0.4898171]
[1737046540501,1.04655328,712.43,711.62,0.4898171]
[1737046540700,1.04655328,712.43,711.63,0.4898171]
[1737046540899,1.04655328,712.43,711.64,0.4898171]
[1737046541100,1.04655328,712.43,711.65,0.4898171]
[1737046541295,1.04655328,712.43,711.66,0.4898171]
[1737046541499,1.04655328,712.43,711.67,0.4898171]
[1737046541702,1.04655328,712.46,711.68,0.4898171]
[1737046541894,1.04655328,712.46,711.69,0.4898171]
[1737046542095,1.04655328,712.46,711.7,0.4898171]
[1737046542301,1.04655328,712.46,711.71,0.4898171]
[1737046542504,1.04655328,712.46,711.72,0.4898171]
[1737046542702,1.04655328,712.47,711.73,0.4898171]
[1737046542896,1.04655328,712.47,711.03,1.04623969]
[1737046542897,1.04655328,712.47,711.74,0.4898171]
[1737046543102,1.04655328,712.47,711.75,0.4898171]
[1737046543300,1.04655328,712.47,711.76,0.4898171]
[1737046543500,1.04655328,712.47,711.03,1.04623969]
[1737046543501,1.04655328,712.47,711.77,0.4898171]
[1737046543699,1.04655328,712.47,711.78,0.4898171]
[1737046543900,1.04655328,712.47,711.79,0.48912016]
[1737046544096,1.04655328,712.47,711.03,1.04623969]
[1737046544097,1.04655328,712.47,711.8,0.48912016]
[1737046544300,1.04655328,712.47,711.03,1.04623969]
[1737046544601,1.04655328,712.46,711.04,2.07480721]
[1737046544796,1.04655328,712.46,711.05,1.02856357]
[1737046545000,1.04655328,712.46,711.06,1.02855961]
[1737046545200,1.04655328,712.46,711.07,1.02855566]
[1737046545400,1.04655328,712.46,711.08,1.0285517]
[1737046545599,0.72304383,712.83,711.09,1.02854774]
[1737046545600,1.04655328,712.44,711.09,1.02854774]
[1737046545800,1.04655328,712.44,711.1,0.25821625]
[1737046546000,1.04655328,712.44,711.11,0.77027521]
[1737046546197,1.04655328,712.44,711.12,1.02848031]
[1737046546397,1.04655328,712.44,711.13,0.74723383]
[1737046546603,0.72304383,712.83,711.14,0.74723383]
[1737046546604,1.04655328,712.45,711.14,0.74723383]
[1737046546797,1.04655328,712.45,711.15,0.74723383]
[1737046546996,1.04655328,712.45,711.16,0.74723383]
[1737046547199,1.04655328,712.45,711.17,1.02846054]
[1737046547503,1.04655328,712.45,711.18,0.74723383]
[1737046547702,1.04655328,712.45,711.19,0.74723383]
[1737046548000,1.04655328,712.46,711.2,0.74723383]
[1737046548204,1.04655328,712.46,711.18,0.28122275]
[1737046548205,1.04655328,712.46,711.21,0.74723383]
[1737046548403,1.04655328,712.46,711.22,0.74723383]
[1737046548602,1.04655328,712.46,711.23,0.74723383]
[1737046548905,1.04655328,712.46,711.24,0.74723383]
[1737046549101,1.04655328,712.46,711.25,0.74723383]
[1737046549305,1.04655328,712.62,711.26,0.74723383]
[1737046549502,1.04655328,712.62,711.27,0.74723383]
[1737046549805,1.04655328,712.62,711.28,0.48902478]
[1737046550005,1.04655328,712.62,711.29,0.48902478]
[1737046550304,1.04655328,712.63,711.3,0.48902478]
[1737046550498,1.04655328,712.63,711.31,0.48902478]
[1737046550698,1.04655328,712.63,711.32,0.48902478]
[1737046550898,1.04655328,712.63,711.33,0.48902478]
[1737046551098,1.04655328,712.63,711.34,0.48902478]
[1737046551303,1.04655328,712.63,711.35,0.48902478]
[1737046551505,1.04655328,712.63,711.36,0.48902478]
[1737046551799,1.04655328,712.63,711.37,0.48902478]
[1737046552003,1.04655328,712.63,711.38,0.48902478]
[1737046552205,1.04655328,712.63,711.18,0.28122275]
[1737046552206,1.04655328,712.75,711.39,0.48902478]
[1737046552398,1.04655328,712.75,711.18,0.28122275]
[1737046552399,1.04655328,712.75,711.4,0.48902478]
[1737046552604,1.04655328,712.75,711.41,0.48902478]
[1737046552807,1.04655328,712.75,711.42,0.48902478]
[1737046553104,1.04655328,712.75,711.43,0.48902478]
[1737046553305,2.13671295,713.56,711.18,0.28122275]
[1737046553306,1.04655328,712.72,711.44,0.48902478]
[1737046553500,1.04655328,712.72,711.45,0.48902478]
[1737046553705,1.04655328,712.72,711.46,0.48902478]
[1737046553905,1.04655328,712.72,711.47,0.48902478]
[1737046554107,1.04655328,712.72,711.48,0.48902478]
[1737046554308,1.46640541,712.76,711.49,0.48902478]
[1737046554506,1.46640541,712.76,711.5,0.48902478]
[1737046554707,0.28060329,712.75,711.51,0.48902478]
[1737046555003,0.28060329,712.75,711.52,0.48902478]
[1737046555207,0.28060329,712.75,711.53,0.48902478]
[1737046555402,0.28060329,712.75,711.18,0.28122275]
[1737046555403,0.28060329,712.75,711.54,0.48902478]
[1737046555603,0.28060329,712.75,711.55,0.48902478]
[1737046555807,0.28060329,712.75,711.56,0.48902478]
[1737046556004,0.28060329,712.75,711.57,0.48902478]
[1737046556203,0.28060329,712.75,711.58,0.48902478]
[1737046556406,0.28060329,712.75,711.59,0.48902478]
[1737046556605,0.28060329,712.75,711.6,0.48902478]
[1737046556811,0.28060329,712.75,711.61,0.48902478]
[1737046557004,0.28060329,712.75,711.62,0.48902478]
[1737046557210,0.28060329,712.75,711.63,0.48821931]
[1737046557410,0.28060329,712.75,711.64,0.48821931]
[1737046557411,1.04655328,712.74,711.64,0.48821931]
[1737046557611,1.04655328,712.74,711.65,0.48821931]
[1737046557909,1.04655328,712.74,711.66,0.48821931]
[1737046558110,1.04655328,712.74,711.67,0.48821931]
[1737046558310,0.28061117,712.73,711.68,0.48821931]
[1737046558506,0.28061117,712.73,711.69,0.48821931]
[1737046558810,0.28061117,712.73,711.7,0.48821931]
[1737046559010,0.28061117,712.73,711.71,0.48821931]
[1737046559210,0.28061117,712.73,711.72,0.48821931]
[1737046559411,0.28061117,712.73,711.73,0.48821931]
[1737046559611,0.28061117,712.73,711.74,0.48821931]
[1737046559812,0.28061117,712.73,711.75,0.48821931]
[1737046560012,0.28061117,712.73,711.76,0.48821931]
[1737046560311,0.28061117,712.73,711.77,0.48821931]
[1737046560513,0.28061117,712.73,711.78,0.48821931]
[1737046560707,0.28061117,712.73,711.79,0.48821931]
[1737046560910,0.28061117,712.73,711.8,0.48821931]
[1737046561109,0.28061117,712.73,711.81,0.48821931]
[1737046561310,0.28061117,712.73,711.82,0.48821931]
[1737046561510,0.28061117,712.73,711.83,0.48821931]
[1737046561710,0.28061117,712.73,711.84,0.48821931]
[1737046561904,0.28061117,712.73,711.85,0.48821931]
[1737046562106,0.28061117,712.73,711.86,0.48821931]
[1737046562309,0.28061117,712.73,711.87,0.48821931]
[1737046562512,0.28061117,712.73,711.88,0.48821931]
[1737046562708,0.28061117,712.73,711.18,0.28122275]
[1737046562709,1.32716445,712.73,711.89,0.48821931]
[1737046562915,1.32716445,712.73,711.9,0.48821931]
[1737046563109,1.32716445,712.73,711.91,0.48821931]
[1737046563416,1.32716445,712.73,711.92,0.48821931]
[1737046563716,1.04655328,712.55,711.93,0.48821931]
[1737046563915,1.04655328,712.55,711.94,0.48821931]
[1737046564214,1.04655328,712.55,711.95,0.48765169]
[1737046564415,1.04655328,712.55,711.96,0.48765169]
[1737046564615,1.04655328,712.61,711.97,0.48765169]
[1737046564815,1.04655328,712.61,711.98,0.48765169]
[1737046565115,1.04655328,712.61,711.26,1.04623969]
[1737046565317,1.04655328,712.61,711.27,0.74579115]
[1737046565519,1.04655328,712.61,711.28,0.74579115]
[1737046565821,0.28061117,712.73,711.29,1.02697041]
[1737046565822,1.04655328,712.58,711.29,1.02697041]
[1737046566017,1.04655328,712.58,711.3,1.02696646]
[1737046566218,1.04655328,712.58,711.31,0.74579115]
[1737046566415,1.04655328,712.64,711.32,0.74579115]
[1737046566618,1.04655328,712.64,711.33,0.74579115]
[1737046566820,0.28061117,712.73,711.34,0.74579115]
[1737046567019,0.28061117,712.73,711.35,0.74579115]
[1737046567320,0.28061117,712.73,711.36,0.74579115]
[1737046567516,0.28061117,712.73,711.37,0.74579115]
[1737046567714,0.28061117,712.73,711.38,0.74579115]
[1737046567918,0.28061117,712.73,711.39,0.74579115]
[1737046568115,0.28061117,712.73,711.4,0.74574535]
[1737046568315,0.28061117,712.73,711.41,0.74574535]
[1737046568615,0.28061117,712.73,711.42,0.74574535]
[1737046568814,0.28061117,712.73,711.43,0.74574535]
[1737046569016,0.28061117,712.73,711.44,0.74574535]
[1737046569219,0.28061117,712.73,711.45,0.74574535]
[1737046569415,0.28061117,712.73,711.46,0.74574535]
[1737046569618,0.28061117,712.73,711.47,0.74574535]
[1737046569818,0.28061117,712.73,711.48,0.74574535]
[1737046570016,0.28061117,712.73,711.49,0.74574535]
[1737046570217,0.28061117,712.73,711.3,0.28117531]
[1737046570218,0.28061117,712.73,711.5,0.48763986]
[1737046570413,0.28061117,712.73,711.51,0.74574441]
[1737046570717,0.28061117,712.73,711.52,0.48763986]
[1737046570917,0.28061117,712.73,711.53,0.48763986]
[1737046571117,0.28061117,712.73,711.33,1.04712373]
[1737046571316,0.28061117,712.73,711.34,0.74520906]
[1737046571513,0.28061117,712.73,711.35,1.0263646]
[1737046571718,0.28061117,712.73,711.36,0.74520906]
[1737046571919,0.28061117,712.73,711.37,0.74520906]
[1737046572119,0.28061117,712.73,711.38,1.02635275]
[1737046572319,0.28061117,712.73,711.39,0.74520906]
[1737046572520,0.28061117,712.73,711.4,0.74520906]
[1737046572720,0.28061117,712.73,711.41,0.74520906]
[1737046573019,0.28061117,712.73,711.42,0.74521372]
[1737046573222,0.28061117,712.73,711.43,0.74521372]
[1737046573417,0.28061117,712.73,711.44,0.74521372]
[1737046573622,0.28061117,712.73,711.45,0.74521372]
[1737046573921,0.28061117,712.73,711.46,0.74521372]
[1737046574122,0.28061117,712.73,711.47,0.74521372]
[1737046574315,0.28061117,712.73,711.48,0.74521372]
[1737046574515,0.28061117,712.73,711.49,0.48709925]
[1737046574820,0.28061117,712.73,711.5,0.48709925]
[1737046575023,0.28061117,712.73,711.51,0.48709925]
[1737046575213,0.28061117,712.73,711.52,0.48709925]
[1737046575419,1.04910156,712.67,711.53,0.48709925]
[1737046575618,1.04910156,712.67,711.54,0.48709925]
[1737046575916,1.04910156,712.67,711.55,0.48709925]
[1737046576121,1.04910156,712.67,711.56,0.48709925]
[1737046576320,1.04910156,712.67,711.57,0.48709925]
[1737046576622,1.04910156,712.67,711.58,0.48709925]
[1737046576924,1.04910156,712.67,711.59,0.48709925]
[1737046577123,1.04910156,712.67,711.6,0.48709925]
[1737046577422,1.04910156,712.67,711.61,0.48709925]
[1737046577624,0.28061117,712.73,711.38,0.28114369]
[1737046577625,1.04910156,712.58,711.62,0.48709925]
[1737046577818,1.04910156,712.58,711.63,0.48709925]
[1737046578023,1.04910156,712.58,711.64,0.48709925]
[1737046578222,1.04910156,712.57,711.65,0.48709925]
[1737046578422,1.04910156,712.57,711.66,0.48709925]
[1737046578723,1.04910156,712.57,711.67,0.48709925]
[1737046578919,1.04910156,712.57,711.68,0.48709925]
[1737046579117,1.04910156,712.57,711.69,0.48695134]
[1737046579318,1.04910156,712.56,711.7,0.48695134]
[1737046579518,1.04910156,712.56,711.71,0.48695134]
[1737046579719,1.04910156,712.56,711.72,0.48695134]
[1737046579922,1.04910156,712.56,711.73,0.48695134]
[1737046580119,1.04910156,712.56,711.74,0.48695134]
[1737046580424,0.28061117,712.73,711.38,0.28114369]
[1737046580425,1.04910156,712.54,711.75,0.48695134]
[1737046580627,1.04910156,712.54,711.76,0.48695134]
[1737046580826,1.04910156,712.54,711.77,0.48695134]
[1737046581020,1.04910156,712.54,711.78,0.48695134]
[1737046581224,1.04910156,712.54,711.79,0.48695134]
[1737046581423,1.04910156,712.54,711.8,0.48695134]
[1737046581626,1.04910156,712.54,711.81,0.48695134]
[1737046581828,1.04910156,712.54,711.82,0.48695134]
[1737046582025,1.04910156,712.54,711.83,0.48695134]
[1737046582227,1.04910156,712.53,711.84,0.48695134]
[1737046582427,1.04910156,712.53,711.85,0.48695134]
[1737046582726,1.04910156,712.53,711.86,0.48695134]
[1737046582926,1.04910156,712.53,711.87,0.48702315]
[1737046583125,1.04910156,712.53,711.88,0.48702315]
[1737046583326,1.04910156,712.53,711.89,0.48702315]
[1737046583528,1.04910156,712.53,711.9,0.48702315]
[1737046583728,1.04910156,712.54,711.91,0.48702315]
[1737046583927,1.04910156,712.54,711.92,0.48702315]
[1737046584128,1.04910156,712.54,711.93,0.48702315]
[1737046584429,1.04910156,712.54,711.94,0.48702315]
[1737046584628,1.04910156,712.57,711.95,0.48702315]
[1737046584828,1.04910156,712.57,711.96,0.48702315]
[1737046585030,1.04910156,712.57,711.97,0.48702315]
[1737046585226,1.04910156,712.57,711.98,0.48702315]
[1737046585423,1.04910156,712.57,711.99,0.48702315]
[1737046585624,1.04910156,712.57,712.0,0.48702315]
[1737046585823,1.04910156,712.57,712.01,0.48702315]
[1737046586129,0.28061117,712.73,711.48,1.04712373]
[1737046586130,1.04910156,712.55,712.02,0.48702315]
[1737046586328,1.04910156,712.55,712.03,0.48702315]
[1737046586529,1.04910156,712.55,712.04,0.48702315]
[1737046586726,1.04910156,712.56,712.05,0.48702315]
[1737046587030,1.04910156,712.56,712.06,0.48702315]
[1737046587231,1.04910156,712.56,711.49,1.04712373]
[1737046587424,1.04910156,712.56,711.5,0.74512575]
[1737046587625,1.04910156,712.56,711.51,0.74512575]
[1737046587829,1.04910156,712.56,711.52,0.74512575]
[1737046588025,1.04910156,712.57,711.53,0.74512575]
[1737046588335,1.04910156,712.57,711.46,1.04712373]
[1737046588336,1.04910156,712.57,711.54,0.4870136]
[1737046588531,1.04910156,712.57,711.46,1.04712373]
[1737046588532,1.04910156,712.63,711.55,0.4870136]
[1737046588831,1.04910156,712.63,711.56,0.4870136]
[1737046589130,1.04910156,712.63,711.57,0.4870136]
[1737046589331,1.04910156,712.63,711.58,0.4870136]
[1737046589533,1.04910156,712.63,711.59,0.4870136]
[1737046589826,1.04910156,712.63,711.6,0.4870136]
[1737046590030,1.04910156,712.63,711.61,0.4870136]
[1737046590230,1.04910156,712.63,711.62,0.4870136]
[1737046590428,0.28061117,712.73,711.63,0.4870136]
[1737046590429,1.04910156,712.64,711.63,0.4870136]
[1737046590626,1.04910156,712.64,711.64,0.4870136]
[1737046590830,1.04910156,712.64,711.65,0.4870136]
[1737046591029,1.04910156,712.64,711.66,0.4870136]
[1737046591228,1.04910156,712.64,711.67,0.4870136]
[1737046591426,1.04910156,712.64,711.68,0.4870136]
[1737046591632,1.04910156,712.66,711.69,0.4870136]
[1737046591830,1.04910156,712.66,711.7,0.4870136]
[1737046592131,1.04910156,712.66,711.71,0.4870136]
[1737046592328,1.04910156,712.66,711.72,0.4870136]
[1737046592526,1.04910156,712.66,711.73,0.4870136]
[1737046592827,0.28061117,712.73,711.74,0.4870136]
[1737046592828,1.04910156,712.68,711.74,0.4870136]
[1737046593031,1.04910156,712.68,711.4,1.04712373]